{"text_format":"3","workbook":"xlsx","n_sheets":1,"sheets":["Kalkulator pożyczki"],"not_rendered":{"defined_names":9},"read":"whole","date_system":"1900"}

{"sheet":"Kalkulator pożyczki","index":0,"n_rows":22,"n_cols":13,"rows_kept":22,"merged":[[1,1,1,3],[1,6,2,8],[1,11,2,12],[2,1,2,3],[6,5,6,6],[7,5,7,6],[10,2,10,5],[10,6,10,8],[10,9,10,12],[18,2,18,12]]}
[]
[null,"KALKULATOR ",{"$nulls":4},{"v":50000,"d":"50,000 zł"},{"$nulls":4},"2011-05-10"]
[null,"POŻYCZKI STUDENCKIEJ "]
[]
[null," Zaleca się, aby całkowita miesięczna kwota spłaty pożyczki studenckiej nie przekraczała 8% pierwszych rocznych zarobków."]
[]
[null,null,"Całkowita bieżąca miesięczna spłata wynosi:",null,null,{"$f":"PożyczkiStudenckie[[#Totals],[Bieżąca miesięczna spłata]]","v":{"v":328.58590726058833,"d":"328.59 zł"}},null,null,"Całkowita zaplanowana miesięczna spłata wynosi:",{"$nulls":3},{"$f":"PożyczkiStudenckie[[#Totals],[Zaplanowana spłata]]","v":{"v":328.58590726058833,"d":"328.59 zł"}}]
[null,null,"Procent miesięcznego przychodu:",null,null,{"$f":"PożyczkiStudenckie[[#Totals],[Bieżąca miesięczna spłata]]/SzacowaneMiesięczneZarobki","v":{"v":0.07886061774254119,"d":"7.89%"}},null,null," Procent miesięcznego przychodu:",{"$nulls":3},{"$f":"PożyczkiStudenckie[[#Totals],[Zaplanowana spłata]]/SzacowaneMiesięczneZarobki","v":{"v":0.07886061774254119,"d":"7.89%"}}]
[]
[]
[null,null,"OGÓLNE DANE POŻYCZKI",{"$nulls":3},"DANE SPŁATY POŻYCZKI",null,null,"SZCZEGÓŁY SPŁATY"]
[null,null,"Nr pożyczki","Pożyczkodawca","Kwota pożyczki","Roczna\nstopa procentowa","Data rozpoczęcia","Długość \n(w latach)","Data zakończenia","Bieżąca miesięczna spłata","Suma\nodsetek","Zaplanowana spłata","Roczna spłata"]
[null,null,"10998M88","Pożyczkodawca 1",{"v":10000,"d":"10,000.00 zł"},{"v":0.05,"d":"5.00%"},"2011-04-01",10,{"$f":"IF(AND(PożyczkiStudenckie[[#This Row],[Data rozpoczęcia]]>0,PożyczkiStudenckie[[#This Row],[Długość \n(w latach)]]>0),EDATE(PożyczkiStudenckie[[#This Row],[Data rozpoczęcia]],PożyczkiStudenckie[[#This Row],[Długość \n(w latach)]]*12),\"\")","v":"2021-04-01"},{"$f":"IF(AND(RozpoczęciePożyczkiOdDzisiaj,COUNT(PożyczkiStudenckie[[#This Row],[Kwota pożyczki]]:PożyczkiStudenckie[[#This Row],[Długość \n(w latach)]])=4,PożyczkiStudenckie[[#This Row],[Data rozpoczęcia]]<TODAY()),PMT(PożyczkiStudenckie[[#This Row],[Roczna\nstopa procentowa]]/12,PożyczkiStudenckie[[#This Row],[Długość \n(w latach)]]*12,-PożyczkiStudenckie[[#This Row],[Kwota pożyczki]],0,0),\"\")","v":{"v":106.06551523907524,"d":"106.07 zł"}},{"$f":"IFERROR((PożyczkiStudenckie[[#This Row],[Zaplanowana spłata]]*(PożyczkiStudenckie[[#This Row],[Długość \n(w latach)]]*12))-PożyczkiStudenckie[[#This Row],[Kwota pożyczki]],\"\")","v":{"v":2727.8618286890287,"d":"2,727.86 zł"}},{"$f":"IF(COUNTA(PożyczkiStudenckie[[#This Row],[Kwota pożyczki]]:PożyczkiStudenckie[[#This Row],[Długość \n(w latach)]])<>4,\"\",PMT(PożyczkiStudenckie[[#This Row],[Roczna\nstopa procentowa]]/12,PożyczkiStudenckie[[#This Row],[Długość \n(w latach)]]*12,-PożyczkiStudenckie[[#This Row],[Kwota pożyczki]],0,0))","v":{"v":106.06551523907524,"d":"106.07 zł"}},{"$f":"IFERROR(PożyczkiStudenckie[[#This Row],[Zaplanowana spłata]]*12,\"\")","v":{"v":1272.7861828689029,"d":"1,272.79 zł"}}]
[null,null,"20987N87","Pożyczkodawca 2",{"v":8000,"d":"8,000.00 zł"},{"v":0.05,"d":"5.00%"},"2011-05-01",10,{"$f":"IF(AND(PożyczkiStudenckie[[#This Row],[Data rozpoczęcia]]>0,PożyczkiStudenckie[[#This Row],[Długość \n(w latach)]]>0),EDATE(PożyczkiStudenckie[[#This Row],[Data rozpoczęcia]],PożyczkiStudenckie[[#This Row],[Długość \n(w latach)]]*12),\"\")","v":"2021-05-01"},{"$f":"IF(AND(RozpoczęciePożyczkiOdDzisiaj,COUNT(PożyczkiStudenckie[[#This Row],[Kwota pożyczki]]:PożyczkiStudenckie[[#This Row],[Długość \n(w latach)]])=4,PożyczkiStudenckie[[#This Row],[Data rozpoczęcia]]<TODAY()),PMT(PożyczkiStudenckie[[#This Row],[Roczna\nstopa procentowa]]/12,PożyczkiStudenckie[[#This Row],[Długość \n(w latach)]]*12,-PożyczkiStudenckie[[#This Row],[Kwota pożyczki]],0,0),\"\")","v":{"v":84.85241219126019,"d":"84.85 zł"}},{"$f":"IFERROR((PożyczkiStudenckie[[#This Row],[Zaplanowana spłata]]*(PożyczkiStudenckie[[#This Row],[Długość \n(w latach)]]*12))-PożyczkiStudenckie[[#This Row],[Kwota pożyczki]],\"\")","v":{"v":2182.289462951223,"d":"2,182.29 zł"}},{"$f":"IF(COUNTA(PożyczkiStudenckie[[#This Row],[Kwota pożyczki]]:PożyczkiStudenckie[[#This Row],[Długość \n(w latach)]])<>4,\"\",PMT(PożyczkiStudenckie[[#This Row],[Roczna\nstopa procentowa]]/12,PożyczkiStudenckie[[#This Row],[Długość \n(w latach)]]*12,-PożyczkiStudenckie[[#This Row],[Kwota pożyczki]],0,0))","v":{"v":84.85241219126019,"d":"84.85 zł"}},{"$f":"IFERROR(PożyczkiStudenckie[[#This Row],[Zaplanowana spłata]]*12,\"\")","v":{"v":1018.2289462951222,"d":"1,018.23 zł"}}]
[null,null,"36785LM","Pożyczkodawca 3",{"v":6000,"d":"6,000.00 zł"},{"v":0.045,"d":"4.50%"},"2012-03-01",10,{"$f":"IF(AND(PożyczkiStudenckie[[#This Row],[Data rozpoczęcia]]>0,PożyczkiStudenckie[[#This Row],[Długość \n(w latach)]]>0),EDATE(PożyczkiStudenckie[[#This Row],[Data rozpoczęcia]],PożyczkiStudenckie[[#This Row],[Długość \n(w latach)]]*12),\"\")","v":"2022-03-01"},{"$f":"IF(AND(RozpoczęciePożyczkiOdDzisiaj,COUNT(PożyczkiStudenckie[[#This Row],[Kwota pożyczki]]:PożyczkiStudenckie[[#This Row],[Długość \n(w latach)]])=4,PożyczkiStudenckie[[#This Row],[Data rozpoczęcia]]<TODAY()),PMT(PożyczkiStudenckie[[#This Row],[Roczna\nstopa procentowa]]/12,PożyczkiStudenckie[[#This Row],[Długość \n(w latach)]]*12,-PożyczkiStudenckie[[#This Row],[Kwota pożyczki]],0,0),\"\")","v":{"v":62.18304525420918,"d":"62.18 zł"}},{"$f":"IFERROR((PożyczkiStudenckie[[#This Row],[Zaplanowana spłata]]*(PożyczkiStudenckie[[#This Row],[Długość \n(w latach)]]*12))-PożyczkiStudenckie[[#This Row],[Kwota pożyczki]],\"\")","v":{"v":1461.9654305051017,"d":"1,461.97 zł"}},{"$f":"IF(COUNTA(PożyczkiStudenckie[[#This Row],[Kwota pożyczki]]:PożyczkiStudenckie[[#This Row],[Długość \n(w latach)]])<>4,\"\",PMT(PożyczkiStudenckie[[#This Row],[Roczna\nstopa procentowa]]/12,PożyczkiStudenckie[[#This Row],[Długość \n(w latach)]]*12,-PożyczkiStudenckie[[#This Row],[Kwota pożyczki]],0,0))","v":{"v":62.18304525420918,"d":"62.18 zł"}},{"$f":"IFERROR(PożyczkiStudenckie[[#This Row],[Zaplanowana spłata]]*12,\"\")","v":{"v":746.1965430505102,"d":"746.20 zł"}}]
[null,null,"765R43","Pożyczkodawca 4",{"v":4000,"d":"4,000.00 zł"},{"v":0.05,"d":"5.00%"},"2012-05-01",5,{"$f":"IF(AND(PożyczkiStudenckie[[#This Row],[Data rozpoczęcia]]>0,PożyczkiStudenckie[[#This Row],[Długość \n(w latach)]]>0),EDATE(PożyczkiStudenckie[[#This Row],[Data rozpoczęcia]],PożyczkiStudenckie[[#This Row],[Długość \n(w latach)]]*12),\"\")","v":"2017-05-01"},{"$f":"IF(AND(RozpoczęciePożyczkiOdDzisiaj,COUNT(PożyczkiStudenckie[[#This Row],[Kwota pożyczki]]:PożyczkiStudenckie[[#This Row],[Długość \n(w latach)]])=4,PożyczkiStudenckie[[#This Row],[Data rozpoczęcia]]<TODAY()),PMT(PożyczkiStudenckie[[#This Row],[Roczna\nstopa procentowa]]/12,PożyczkiStudenckie[[#This Row],[Długość \n(w latach)]]*12,-PożyczkiStudenckie[[#This Row],[Kwota pożyczki]],0,0),\"\")","v":{"v":75.48493457604374,"d":"75.48 zł"}},{"$f":"IFERROR((PożyczkiStudenckie[[#This Row],[Zaplanowana spłata]]*(PożyczkiStudenckie[[#This Row],[Długość \n(w latach)]]*12))-PożyczkiStudenckie[[#This Row],[Kwota pożyczki]],\"\")","v":{"v":529.0960745626244,"d":"529.10 zł"}},{"$f":"IF(COUNTA(PożyczkiStudenckie[[#This Row],[Kwota pożyczki]]:PożyczkiStudenckie[[#This Row],[Długość \n(w latach)]])<>4,\"\",PMT(PożyczkiStudenckie[[#This Row],[Roczna\nstopa procentowa]]/12,PożyczkiStudenckie[[#This Row],[Długość \n(w latach)]]*12,-PożyczkiStudenckie[[#This Row],[Kwota pożyczki]],0,0))","v":{"v":75.48493457604374,"d":"75.48 zł"}},{"$f":"IFERROR(PożyczkiStudenckie[[#This Row],[Zaplanowana spłata]]*12,\"\")","v":{"v":905.8192149125249,"d":"905.82 zł"}}]
[null,null,"Sumy",null,{"$f":"SUBTOTAL(109,PożyczkiStudenckie[Kwota pożyczki])","v":{"v":28000,"d":"28,000.00 zł"}},{"$nulls":4},{"$f":"SUBTOTAL(109,PożyczkiStudenckie[Bieżąca miesięczna spłata])","v":{"v":328.58590726058833,"d":"328.59 zł"}},{"$f":"SUBTOTAL(109,PożyczkiStudenckie[Suma\nodsetek])","v":{"v":6901.212796707978,"d":"6,901.21 zł"}},{"$f":"SUBTOTAL(109,PożyczkiStudenckie[Zaplanowana spłata])","v":{"v":328.58590726058833,"d":"328.59 zł"}},{"$f":"SUBTOTAL(109,PożyczkiStudenckie[Roczna spłata])","v":{"v":3943.03088712706,"d":"3,943.03 zł"}}]
[null,null,"Wartości średnie",null,{"$f":"AVERAGE(PożyczkiStudenckie[Kwota pożyczki])","v":{"v":7000,"d":"7,000.00 zł"}},{"$f":"AVERAGE(PożyczkiStudenckie[Roczna\nstopa procentowa])","v":{"v":0.04875,"d":"4.88%"}},{"$nulls":4},{"$f":"AVERAGE(PożyczkiStudenckie[Suma\nodsetek])","v":{"v":1725.3031991769944,"d":"1,725.30 zł"}},null,{"$f":"AVERAGE(PożyczkiStudenckie[Roczna spłata])","v":{"v":985.757721781765,"d":"985.76 zł"}}]
[]
[{"$nulls":10},"Całkowita skonsolidowana spłata pożyczki:",null,{"$f":"PożyczkiStudenckie[[#Totals],[Kwota pożyczki]]+PożyczkiStudenckie[[#Totals],[Suma\nodsetek]]","v":{"v":34901.21279670798,"d":"34,901.21 zł"}}]
[]
[{"$nulls":10},"Szacowany przychód miesięczny po ukończeniu studiów:",null,{"$f":"(SzacowaneRoczneZarobki/12)","v":{"v":4166.666666666667,"d":"4,166.67 zł"}}]